[Event "44th Chess Olympiad Open 2022"]
[Site "Chennai"]
[Date "2022.08.02"]
[Round "5.15"]
[White "Zacarias, M Ruben D"]
[Black "Pantsulaia, Levan"]
[Result "0-1"]
[WhiteElo "2175"]
[BlackElo "2581"]
[Annotator "TA"]
[PlyCount "91"]
[EventDate "2022.??.??"]
[TimeControl "60"]

{[%evp 10,91,31,32,31,18,21,17,27,22,37,26,27,17,14,16,13,22,37,21,25,10,0,0,
41,25,37,0,0,4,25,0,0,0,0,0,0,0,0,0,0,0,0,0,0,-35,-33,-38,-15,-51,-48,-48,-46,
-47,-41,-67,-14,-38,-27,-847,-830,-1275,-971,-974,-973,-943,-930,-1078,-1065,
-977,-935,-5381,-5277,-1521,-1170,-1879,-1229,-1340,-1110,-1576,-1210,-1374,
-1289,-1531]} 1. e4 {[%emt 0:00:03]} c5 {[%emt 0:00:18]} 2. Nf3 {[%emt 0:00:10]
} e6 {[%emt 0:00:08]} 3. d4 {[%emt 0:00:09]} cxd4 {[%emt 0:00:08]} 4. Nxd4 {
[%emt 0:00:05]} a6 {[%emt 0:00:10]} 5. Bd3 {[%emt 0:01:01]} Ne7 {[%emt 0:02:23]
} 6. Nc3 {[%emt 0:02:54]} Nec6 {[%emt 0:00:21] B42: Sicilian: Kan Variation: 5
Bd3.} 7. Nb3 {[%emt 0:01:54]} d6 {[%emt 0:02:29]} 8. O-O {[%emt 0:00:58]} Be7 {
[%emt 0:01:13] The position is equal.} 9. f4 {[%emt 0:02:03]} b5 {[%emt 0:00:
00]} 10. Be3 {[%emt 0:05:31]} Nd7 {[%emt 0:00:53]} 11. a4 {[%emt 0:15:55]} b4 {
[%emt 0:00:40] [#]} 12. Nb1 $146 {[%emt 0:02:48][%cal Yc3b1,Yb1d2,Yd2c4]} ({
Predecessor:} 12. Ne2 O-O 13. Qd2 Bb7 14. Ng3 g6 15. Qf2 Bf6 16. Rab1 Bg7 17.
Kh1 a5 18. Rfd1 {½-½ (34) Berggren Torell,H (2176)-Andreasson,I (2356)
Gothenburg 2015}) 12... O-O {[%emt 0:19:50]} 13. N1d2 {[%emt 0:00:27]} a5 {
[%emt 0:01:17]} 14. Bb5 {[%emt 0:02:37]} Bb7 {[%emt 0:01:21]} 15. Nc4 {[%emt 0:
00:37]} Qc7 {[%emt 0:00:50]} 16. Qd3 {[%emt 0:12:45]} Ncb8 {[%emt 0:00:00]} 17.
Bd4 {[%emt 0:12:55]} (17. Rac1 $5 {[%cal Rc2c3]}) 17... d5 {[%emt 0:00:00]} 18.
exd5 {[%emt 0:00:15]} (18. Qg3 $5 {[%cal Rg3g7]} g6 19. exd5 Bxd5 20. Ne3 $11)
18... Bxd5 {[%emt 0:00:04]} 19. Ne3 {[%emt 0:02:03]} Bb7 {[%emt 0:00:00]} 20.
Rad1 {[%emt 0:05:17]} Rd8 {[%emt 0:01:18]} 21. Ng4 {[%emt 0:09:58] [#] Black
must now prevent Qg3.} Nf6 {[%emt 0:05:10]} 22. Be5 {[%emt 0:05:34]} Qb6+ {
[%emt 0:02:28]} 23. Bd4 {[%emt 0:02:14]} Qc7 {[%emt 0:00:12]} 24. Be5 {[%emt 0:
00:24]} Qb6+ {[%emt 0:01:05]} 25. Bd4 {[%emt 0:01:53]} Qc7 {[%emt 0:00:00]} 26.
Be5 {[%emt 0:00:07]} Qc8 {[%emt 0:09:07]} 27. Qe2 {[%emt 0:01:26]} Nbd7 {
[%emt 0:03:14]} (27... Nxg4 {is more complex.} 28. Qxg4 g6 29. Rxd8+ Bxd8 30.
c4 bxc3 31. Bxc3 Nd7) 28. Nxf6+ {[%emt 0:04:10]} Nxf6 {[%emt 0:00:46]} 29.
Rxd8+ {[%emt 0:01:44]} Bxd8 {[%emt 0:00:04]} 30. c4 {[%emt 0:01:19]} bxc3 {
[%emt 0:01:04]} 31. bxc3 {[%emt 0:00:11]} Bb6+ {[%emt 0:03:26]} 32. Kh1 {
[%emt 0:01:17]} Ne4 {[%emt 0:00:22]} (32... Nd5 $15) 33. c4 {[%emt 0:01:14]}
Qd8 {[%emt 0:01:14] [#] Strongly threatening ...Qh4.} 34. Nc1 $2 {[%emt 0:00:
00] This move loses the game for White.} (34. c5 $11 Nxc5 35. Nxc5 Bxc5 36.
Bxg7) 34... Qh4 $19 {[%emt 0:00:58][%csl Gh4][%cal Re4g3] Black is clearly
winning.} 35. Rf3 {[%emt 0:02:43] Prevents Ng3+.} Rd8 {[%emt 0:01:53] ( -> ...
Nf2+)} 36. c5 {[%emt 0:00:28]} Rd2 {[%emt 0:01:22]} 37. cxb6 {[%emt 0:00:00]}
Rxe2 {[%emt 0:00:07]} 38. Bxe2 {[%emt 0:00:05]} Nf2+ {[%emt 0:00:49]} 39. Kg1 {
[%emt 0:00:11]} Ng4 {[%emt 0:00:07]} 40. h3 {[%emt 0:00:55]} Qe1+ {[%emt 0:00:
28]} 41. Bf1 {[%emt 0:30:34]} Nxe5 {[%emt 0:30:16]} 42. Rb3 {[%emt 0:00:00]}
Nd7 {[%emt 0:00:00] Threatens to win with ...Nc5.} 43. Ne2 {[%emt 0:00:00]} Qd2
{[%emt 0:00:00]} 44. Kf2 {[%emt 0:00:00]} Qd6 {[%emt 0:00:00]} 45. Rb5 {
[%emt 0:00:00]} Ba6 {[%emt 0:00:00]} 46. Ke3 {[%emt 0:00:36] Weighted Error
Value: White=0.78/Black=0.46} 0-1

[Event "44th Chess Olympiad Open 2022"]
[Site "Chennai"]
[Date "2022.08.02"]
[Round "5.16"]
[White "Mastrovasilis, Athanasios"]
[Black "Macovei, Andrei"]
[Result "1/2-1/2"]
[WhiteElo "2527"]
[BlackElo "2478"]
[Annotator "RC"]
[PlyCount "79"]
[EventDate "2022.??.??"]
[TimeControl "60"]

1. d4 {[%emt 0:00:03]} Nf6 {[%emt 0:00:09]} 2. c4 {[%emt 0:00:06]} e6 {[%emt 0:
00:00]} 3. Nc3 {[%emt 0:00:23]} d5 {[%emt 0:00:38]} 4. cxd5 {[%emt 0:00:35]}
Nxd5 {[%emt 0:00:04]} 5. Nf3 {[%emt 0:04:25]} c5 {[%emt 0:00:31]} 6. e3 {
[%emt 0:01:09]} cxd4 {[%emt 0:00:13]} 7. exd4 {[%emt 0:00:05]} Nxc3 {[%emt 0:
00:00]} 8. bxc3 {[%emt 0:00:11]} Qc7 {[%emt 0:00:17]} 9. Bd2 {[%emt 0:00:28]}
Nd7 {[%emt 0:01:35]} 10. Bd3 {[%emt 0:01:00]} Bd6 {[%emt 0:00:05]} 11. O-O {
[%emt 0:04:02]} b6 {[%emt 0:00:05]} 12. Re1 {[%emt 0:10:15]} Bb7 {[%emt 0:00:
00]} 13. a4 {[%emt 0:24:00]} O-O {[%emt 0:07:58]} 14. h3 {[%emt 0:03:04]} h6 {
[%emt 0:01:59]} 15. Qe2 {[%emt 0:06:46]} Rfe8 {[%emt 0:08:39]} 16. Be4 {
[%emt 0:14:52]} Bxe4 {[%emt 0:05:04]} 17. Qxe4 {[%emt 0:00:05]} Rac8 {[%emt 0:
00:00]} 18. Qd3 {[%emt 0:03:38]} Qc4 {[%emt 0:05:35]} 19. Qxc4 {[%emt 0:00:14]}
Rxc4 {[%emt 0:00:02]} 20. a5 {[%emt 0:02:29]} Nf6 {[%emt 0:13:33]} 21. axb6 {
[%emt 0:00:09]} axb6 {[%emt 0:00:01]} 22. Reb1 {[%emt 0:02:29]} Nd5 {[%emt 0:
00:00]} 23. Kf1 {[%emt 0:00:40]} Rec8 {[%emt 0:03:37]} 24. Rb3 {[%emt 0:00:23]}
R8c7 {[%emt 0:09:27]} 25. Ke2 {[%emt 0:02:35]} Nxc3+ {[%emt 0:01:43]} 26. Bxc3
{[%emt 0:00:18]} Rxc3 {[%emt 0:00:01]} 27. Rxb6 {[%emt 0:00:23]} Rc2+ {[%emt 0:
00:00]} 28. Kf1 {[%emt 0:00:52]} Be7 {[%emt 0:00:08]} 29. Rd1 {[%emt 0:02:20]}
Bf6 {[%emt 0:03:03]} 30. Rb3 {[%emt 0:07:25]} Ra2 {[%emt 0:05:42]} 31. Rbd3 {
[%emt 0:00:00]} Rcc2 {[%emt 0:04:47]} 32. R1d2 {[%emt 0:00:00]} Rxd2 {[%emt 0:
00:00]} 33. Nxd2 {[%emt 0:00:00]} Ra4 {[%emt 0:00:09]} 34. Nf3 {[%emt 0:00:00]}
Kf8 {[%emt 0:00:34]} 35. Ke2 {[%emt 0:00:00]} Ke7 {[%emt 0:00:59]} 36. Ke3 {
[%emt 0:00:00]} Kd6 {[%emt 0:00:53]} 37. Rb3 {[%emt 0:00:00]} Kc6 {[%emt 0:00:
00]} 38. Rc3+ {[%emt 0:02:07]} Kd6 {[%emt 0:03:34]} 39. Rb3 {[%emt 0:00:06]}
Kc6 {[%emt 0:05:18]} 40. Rc3+ {[%emt 0:00:14]} 1/2-1/2

[Event "44th Chess Olympiad Open 2022"]
[Site "Chennai"]
[Date "2022.08.02"]
[Round "5.16"]
[White "Schitco, Ivan"]
[Black "Theodorou, Nikolas"]
[Result "1/2-1/2"]
[WhiteElo "2490"]
[BlackElo "2575"]
[Annotator "TA"]
[PlyCount "56"]
[EventDate "2022.??.??"]
[TimeControl "60"]

{[%evp 10,56,53,35,38,26,32,36,30,11,56,16,33,29,36,13,11,-19,-10,-6,-19,-24,
-25,-48,-52,-50,-27,-72,-61,-50,-72,-76,42,0,0,0,0,0,0,0,0,0,0,0,0,0,0,0,0]} 1.
c4 {[%emt 0:00:04]} Nf6 {[%emt 0:00:08]} 2. Nc3 {[%emt 0:00:14]} g6 {[%emt 0:
00:00]} 3. d4 {[%emt 0:00:13]} Bg7 {[%emt 0:00:05]} 4. e4 {[%emt 0:00:13]} d6 {
[%emt 0:00:03]} 5. Be2 {[%emt 0:00:26]} O-O {[%emt 0:01:10]} 6. Be3 {[%emt 0:
00:00]} Na6 {[%emt 0:01:24] E73: King's Indian: Averbakh Variation without 6...
c5.} 7. h4 {[%emt 0:01:45]} h5 {[%emt 0:00:04]} 8. f3 {[%emt 0:03:15]} c5 {
[%emt 0:01:51] White is slightly better.} 9. d5 {[%emt 0:02:43]} e6 {[%emt 0:
00:00]} 10. Qd2 {[%emt 0:02:17]} exd5 {[%emt 0:02:33]} 11. cxd5 {[%emt 0:02:53]
} (11. Nxd5 Nxd5 12. cxd5 f5 $15) 11... Nc7 {[%emt 0:00:46][%cal Yb7b5]} 12. a4
{[%emt 0:03:41] [#]} a6 $146 {[%emt 0:06:52]} ({Predecessor:} 12... Re8 13. Nh3
Bxh3 14. Rxh3 a6 15. a5 Rb8 16. Kf2 b5 17. axb6 Rxb6 18. Rhh1 Nb5 19. Nxb5 axb5
{0-1 (48) Trost,E (2366)-Matinian,N (2435) Chess.com INT 2022}) 13. Nh3 {
[%emt 0:08:02]} Bxh3 {[%emt 0:00:23]} 14. Rxh3 {[%emt 0:00:03]} b5 {[%emt 0:00:
00]} 15. Bh6 {[%emt 0:15:29]} Re8 {[%emt 0:02:47][%cal Yf8e8,Ye8a8,Ya8a1]} 16.
Bxg7 {[%emt 0:02:57]} Kxg7 {[%emt 0:00:03]} 17. Kf1 {[%emt 0:02:37]} Qe7 {
[%emt 0:07:36]} (17... Nd7 {with more complications.} 18. Rh1 Qf6 19. Qg5 Qd4)
18. axb5 {[%emt 0:08:22]} axb5 {[%emt 0:00:14]} 19. Rxa8 {[%emt 0:00:10]} Rxa8
{[%emt 0:00:06]} 20. Bxb5 {[%emt 0:00:55]} Ng4 {[%emt 0:28:38]} 21. fxg4 {
[%emt 0:11:39]} (21. Be2 $5 {[%cal Rf3g4]} Ra1+ 22. Nd1 $14) 21... Ra1+ $1 {
[%emt 0:00:22] The position is equal.} 22. Ke2 {[%emt 0:07:49]} hxg4 {[%emt 0:
00:00]} ({Much less strong is} 22... Nxb5 23. Nxb5 Qxe4+ 24. Kf2 hxg4 25. Ra3 (
25. Nxd6 Qe7 $11) 25... g3+ 26. Rxg3 (26. Kxg3 Rh1 $11) 26... Qxh4 27. Nc3 $16
(27. Nxd6 Qf6+ 28. Nf5+ Qxf5+ 29. Rf3 Qe5 $11) (27. Qc3+ Kg8 $11)) 23. Re3 {
[%emt 0:05:11] [#] aiming for Bc4.} Qf6 $1 {[%emt 0:03:44][%csl Ga1][%cal
Rf6f1]} 24. Kd3 {[%emt 0:00:50]} Qd4+ {[%emt 0:05:53]} 25. Ke2 {[%emt 0:04:39]
Threatens to win with Bc6.} Qf6 {[%emt 0:14:26][%csl Ga1][%cal Rf6f1]} 26. Kd3
{[%emt 0:00:32] Hoping for Kc2.} Qd4+ {[%emt 0:06:42]} 27. Ke2 {[%emt 0:00:16]
[#] Strongly threatening Bc6.} Qf6 {[%emt 0:06:29][%csl Ga1][%cal Rf6f1]} 28.
Kd3 {[%emt 0:00:08] And now Kc2 would win.} Qd4+ {[%emt 0:00:25] Weighted
Error Value: White=0.11 (very precise) /Black=0.12 (very precise)} 1/2-1/2

[Event "44th Chess Olympiad Open 2022"]
[Site "Chennai"]
[Date "2022.08.02"]
[Round "5.16"]
[White "Hamitevici, Vladimir"]
[Black "Banikas, Hristos"]
[Result "0-1"]
[WhiteElo "2473"]
[BlackElo "2598"]
[Annotator "TA"]
[PlyCount "112"]
[EventDate "2022.??.??"]
[TimeControl "60"]

{[%evp 15,112,27,28,10,33,30,34,35,27,12,10,10,43,-2,11,0,4,0,20,16,18,16,16,
15,22,18,20,12,12,16,8,0,-12,-4,-16,-11,-8,-48,-52,-52,-54,-55,-40,-114,-115,
-115,-114,-131,-130,-131,-129,-130,-133,-166,-174,-247,-81,-85,-82,-119,-120,
-127,-113,-115,-116,-147,-140,-136,-147,-147,-129,-147,-141,-137,-131,-146,
-140,-255,-250,-416,-402,-417,-417,-404,-372,-564,-517,-713,-709,-698,-679,
-29973,-29967,-29977,-29978,-29977,-29978,-12849,-4710]} 1. d4 {[%emt 0:00:03]}
Nf6 {[%emt 0:00:09]} 2. c4 {[%emt 0:00:09]} e6 {[%emt 0:00:06]} 3. Nf3 {
[%emt 0:00:48]} b6 {[%emt 0:00:09]} 4. g3 {[%emt 0:00:46]} Bb4+ {[%emt 0:00:17]
} 5. Bd2 {[%emt 0:02:42]} a5 {[%emt 0:01:47]} 6. Bg2 {[%emt 0:00:47]} Bb7 {
[%emt 0:00:07]} 7. O-O {[%emt 0:00:50]} O-O {[%emt 0:00:10]} 8. Bf4 {[%emt 0:
00:00]} Be7 {[%emt 0:00:09]} 9. Qc2 {[%emt 0:05:18] E16: Queen's Indian: 4 g3
Bb7 5 Bg2 Bb4+.} Be4 {[%emt 0:12:24]} 10. Qc1 {[%emt 0:03:15]} Bb7 {[%emt 0:00:
00]} 11. Nc3 {[%emt 0:05:39] White is slightly better.} Ne4 {[%emt 0:00:16]}
12. d5 {[%emt 0:01:26]} Nxc3 {[%emt 0:14:29]} 13. Qxc3 {[%emt 0:01:09]} Na6 {
[%emt 0:00:05] [#]} 14. Rfd1 $146 {[%emt 0:21:12]} ({Predecessor:} 14. e4 Nc5
15. Qc2 d6 16. Be3 g6 17. Rad1 exd5 18. cxd5 {1-0 (60) Salimova,N (2372)-Gara,
T (2371) Valjevo 2020}) 14... Nc5 {[%emt 0:00:56]} 15. Nd4 {[%emt 0:15:05]} Bf6
{[%emt 0:05:16]} 16. Be3 {[%emt 0:09:56]} Qc8 {[%emt 0:16:37]} 17. Qc2 {
[%emt 0:01:25]} Re8 {[%emt 0:02:00]} 18. Rab1 {[%emt 0:02:03]} g6 {[%emt 0:00:
00]} 19. b3 {[%emt 0:04:48]} exd5 {[%emt 0:00:52]} 20. cxd5 {[%emt 0:00:16]}
Rxe3 {[%emt 0:00:23]} 21. fxe3 {[%emt 0:00:07]} Qe8 {[%emt 0:00:01]} 22. e4 {
[%emt 0:04:22]} Qe5 $1 {[%emt 0:00:57]} 23. Nf3 {[%emt 0:05:21]} Qxe4 {[%emt 0:
00:00]} 24. Qxe4 {[%emt 0:00:08]} Nxe4 {[%emt 0:00:04]} 25. Rbc1 {[%emt 0:00:
00]} (25. Ne5 {keeps more tension.} Nc3 26. Nxd7 Bg5 27. d6) 25... Nc3 {
[%emt 0:01:14]} 26. Rxc3 {[%emt 0:00:16]} Bxc3 {[%emt 0:00:04] This bishop
pair is nice.} 27. Rc1 {[%emt 0:00:04]} Bb4 $36 {[%emt 0:01:13] Black is more
active.} 28. Rxc7 {[%emt 0:00:10]} Bxd5 {[%emt 0:04:21]} 29. Ng5 {[%emt 0:01:
13]} (29. Rxd7 $15 Bc5+ 30. Kf1) 29... Bxg2 $17 {[%emt 0:00:23]} 30. Kxg2 {
[%emt 0:00:05] Endgame KRB-KRN} Re8 {[%emt 0:00:15] And now ...h6 would win.}
31. Kf3 {[%emt 0:02:01]} Re5 $1 {[%emt 0:00:08]} 32. h4 {[%emt 0:06:33]} h6 {
[%emt 0:01:17]} 33. Ne4 {[%emt 0:02:17]} d5 {[%emt 0:01:45]} 34. Nc3 {[%emt 0:
00:53]} Bc5 {[%emt 0:01:01] Hoping for ...Re3+.} 35. e4 {[%emt 0:00:06] [#]} (
35. Nd1 $142) 35... dxe4+ $2 {[%emt 0:00:58]} (35... f5 $1 $19 {has better
winning chances.} 36. Kf4 (36. Rc8+ $2 Kf7 $19) 36... Bd6) 36. Nxe4 {[%emt 0:
00:02]} Be7 {[%emt 0:01:13]} 37. a4 {[%emt 0:00:07]} Re6 {[%emt 0:03:27]} 38.
Nd2 {[%emt 0:01:03]} Kg7 {[%emt 0:03:24]} 39. Nc4 {[%emt 0:00:00]} Bc5 {
[%emt 0:00:37]} 40. Rd7 {[%emt 0:01:14]} Rf6+ {[%emt 0:00:33]} 41. Ke4 {
[%emt 0:03:47]} Rf1 {[%emt 0:05:42]} 42. Rd3 {[%emt 0:03:52]} Rg1 {[%emt 0:01:
02]} 43. Ne5 {[%emt 0:12:18]} Bf2 {[%emt 0:04:05]} 44. Kf4 {[%emt 0:00:00]} Re1
{[%emt 0:01:23]} 45. Nc4 {[%emt 0:02:26]} Bc5 {[%emt 0:01:48]} 46. Ne5 {
[%emt 0:01:35] [#]} (46. g4 $17) 46... f5 $1 $19 {[%emt 0:00:48]} 47. Nc4 $2 {
[%emt 0:01:25]} (47. Nd7 Re4+ 48. Kf3) 47... Kf6 {[%emt 0:02:58]} 48. Kf3 {
[%emt 0:02:16]} g5 {[%emt 0:00:03]} 49. hxg5+ {[%emt 0:00:09]} hxg5 {[%emt 0:
00:00]} 50. g4 {[%emt 0:00:46]} (50. Kg2 $142) 50... Rf1+ {[%emt 0:07:19]} 51.
Ke2 {[%emt 0:00:01]} Rf2+ {[%emt 0:00:05]} 52. Ke1 {[%emt 0:00:05]} fxg4 {
[%emt 0:00:32][%cal Yf5g4,Yg4g3] Threatens to win with ...Rf3.} 53. Nxb6 {
[%emt 0:00:10]} Bxb6 {[%emt 0:00:05]} 54. Rd6+ {[%emt 0:00:05]} Kf5 {[%emt 0:
03:30]} 55. Rxb6 {[%emt 0:00:06]} g3 {[%emt 0:00:02]} 56. Rc6 {[%emt 0:00:00]}
Rf4 {[%emt 0:00:27] Weighted Error Value: White=0.44/Black=0.07 (flawless)} 0-1

[Event "44th Chess Olympiad Open 2022"]
[Site "Chennai"]
[Date "2022.08.02"]
[Round "5.16"]
[White "Ioannidis, Evgenios"]
[Black "Ceres, Dragos"]
[Result "0-1"]
[WhiteElo "2459"]
[BlackElo "2378"]
[Annotator "RC"]
[PlyCount "86"]
[EventDate "2022.??.??"]
[TimeControl "60"]

1. c4 {[%emt 0:00:08]} e6 {[%emt 0:00:18]} 2. Nc3 {[%emt 0:00:38]} d5 {[%emt 0:
00:00]} 3. d4 {[%emt 0:00:20]} a6 {[%emt 0:00:54]} 4. Nf3 {[%emt 0:05:33]} dxc4
{[%emt 0:01:04]} 5. e3 {[%emt 0:01:59]} Nf6 {[%emt 0:03:00]} 6. a4 {[%emt 0:00:
00]} c5 {[%emt 0:09:41]} 7. Bxc4 {[%emt 0:00:16]} cxd4 {[%emt 0:02:46]} 8. exd4
{[%emt 0:00:17]} Be7 {[%emt 0:01:08]} 9. O-O {[%emt 0:11:59]} O-O {[%emt 0:00:
00]} 10. Bf4 {[%emt 0:00:40]} Nbd7 {[%emt 0:11:03]} 11. d5 {[%emt 0:11:03]} Nb6
{[%emt 0:15:04]} 12. d6 {[%emt 0:01:26]} Nxc4 {[%emt 0:00:05]} 13. dxe7 {
[%emt 0:00:07]} Qxe7 {[%emt 0:00:04]} 14. Qd4 {[%emt 0:01:16]} e5 {[%emt 0:00:
00]} 15. Nxe5 {[%emt 0:00:20]} Nxe5 {[%emt 0:00:09]} 16. Bxe5 {[%emt 0:00:11]}
Rd8 {[%emt 0:00:17]} 17. Bxf6 {[%emt 0:12:27]} Qxf6 {[%emt 0:00:06]} 18. Qxf6 {
[%emt 0:02:56]} gxf6 {[%emt 0:00:06]} 19. a5 {[%emt 0:01:32]} Be6 {[%emt 0:00:
00]} 20. Ne4 {[%emt 0:07:46]} f5 {[%emt 0:02:05]} 21. Nc5 {[%emt 0:00:05]} Rac8
{[%emt 0:07:40]} 22. b4 {[%emt 0:00:23]} Rd4 {[%emt 0:03:36]} 23. Rfb1 {
[%emt 0:04:55]} Rc7 {[%emt 0:03:39]} 24. h3 {[%emt 0:03:53]} Kg7 {[%emt 0:00:
00]} 25. Nxe6+ {[%emt 0:00:51]} fxe6 {[%emt 0:00:06]} 26. b5 {[%emt 0:00:04]}
axb5 {[%emt 0:01:41]} 27. Rxb5 {[%emt 0:01:55]} Rd5 {[%emt 0:00:06]} 28. Rxd5 {
[%emt 0:02:43]} exd5 {[%emt 0:00:06]} 29. Rb1 {[%emt 0:00:39]} d4 {[%emt 0:00:
00]} 30. f4 {[%emt 0:05:42]} Rd7 {[%emt 0:04:43]} 31. Kf2 {[%emt 0:00:27]} d3 {
[%emt 0:01:39]} 32. Ke3 {[%emt 0:00:12]} Kg6 {[%emt 0:01:39]} 33. Kd2 {[%emt 0:
00:00]} Kh5 {[%emt 0:06:54]} 34. Rb5 {[%emt 0:01:06]} Kh4 {[%emt 0:00:31]} 35.
Rxf5 {[%emt 0:04:07]} Kg3 {[%emt 0:00:09]} 36. Rf8 {[%emt 0:02:40]} Kxg2 {
[%emt 0:00:06]} 37. f5 {[%emt 0:01:10]} Kxh3 {[%emt 0:00:20]} 38. f6 {[%emt 0:
00:00]} Kg4 {[%emt 0:00:51]} 39. Rg8+ {[%emt 0:02:51]} Kf5 {[%emt 0:00:08]} 40.
Rg7 {[%emt 0:00:04]} Ke6 {[%emt 0:00:06]} 41. Rxd7 {[%emt 0:35:26]} Kxd7 {
[%emt 0:31:35]} 42. Kxd3 {[%emt 0:00:02]} Ke6 {[%emt 0:00:14]} 43. Kd4 {
[%emt 0:00:32]} h5 {[%emt 0:01:10]} 0-1

[Event "44th Chess Olympiad Open 2022"]
[Site "Chennai"]
[Date "2022.08.02"]
[Round "5.17"]
[White "Vocaturo, Daniele"]
[Black "Meier, Georg"]
[Result "1/2-1/2"]
[WhiteElo "2616"]
[BlackElo "2613"]
[Annotator "RC"]
[PlyCount "60"]
[EventDate "2022.??.??"]
[TimeControl "60"]

1. e4 {[%emt 0:00:11]} e6 {[%emt 0:00:06]} 2. d4 {[%emt 0:00:20]} d5 {[%emt 0:
00:00]} 3. Nc3 {[%emt 0:00:15]} dxe4 {[%emt 0:00:06]} 4. Nxe4 {[%emt 0:00:09]}
Nd7 {[%emt 0:00:04]} 5. Nf3 {[%emt 0:00:49]} Ngf6 {[%emt 0:00:06]} 6. Nxf6+ {
[%emt 0:00:13]} Nxf6 {[%emt 0:00:07]} 7. Be3 {[%emt 0:00:09]} Bd6 {[%emt 0:00:
00]} 8. Bd3 {[%emt 0:00:28]} O-O {[%emt 0:00:14]} 9. Qe2 {[%emt 0:00:48]} b6 {
[%emt 0:00:08]} 10. O-O-O {[%emt 0:01:04]} Bb7 {[%emt 0:00:07]} 11. Rhe1 {
[%emt 0:00:18]} Nd5 {[%emt 0:00:18]} 12. Kb1 {[%emt 0:00:55]} Nxe3 {[%emt 0:00:
00]} 13. fxe3 {[%emt 0:00:12]} Bxf3 {[%emt 0:00:08]} 14. gxf3 {[%emt 0:04:53]}
Qh4 {[%emt 0:00:14]} 15. f4 {[%emt 0:03:45]} c5 {[%emt 0:01:33]} 16. c3 {
[%emt 0:07:20]} cxd4 {[%emt 0:03:24]} 17. cxd4 {[%emt 0:00:06]} Rac8 {[%emt 0:
00:00]} 18. Rc1 {[%emt 0:11:45]} Rfd8 {[%emt 0:01:32]} 19. a3 {[%emt 0:04:27]}
g6 {[%emt 0:00:31]} 20. Rg1 {[%emt 0:02:40]} Rxc1+ {[%emt 0:01:37]} 21. Rxc1 {
[%emt 0:00:08]} Kg7 {[%emt 0:00:15]} 22. Ka2 {[%emt 0:09:19]} Rd7 {[%emt 0:00:
00]} 23. Kb1 {[%emt 0:01:08]} Rc7 {[%emt 0:00:17]} 24. Rd1 {[%emt 0:00:11]} Qh3
{[%emt 0:05:41]} 25. Rg1 {[%emt 0:01:32]} Qh4 {[%emt 0:01:19]} 26. Rd1 {
[%emt 0:00:36]} Qh3 {[%emt 0:01:42]} 27. Rg1 {[%emt 0:00:18]} Qh4 {[%emt 0:00:
00]} 28. Rd1 {[%emt 0:00:07]} Qh3 {[%emt 0:01:54]} 29. Rg1 {[%emt 0:00:08]} Qh4
{[%emt 0:00:04]} 30. Rd1 {[%emt 0:00:10]} Qh3 {[%emt 0:00:06]} 1/2-1/2

[Event "44th Chess Olympiad Open 2022"]
[Site "Chennai"]
[Date "2022.08.02"]
[Round "5.17"]
[White "Sonis, Francesco"]
[Black "Diaz Hollemaert, Nahuel"]
[Result "1-0"]
[WhiteElo "2543"]
[BlackElo "2425"]
[Annotator "RC"]
[PlyCount "67"]
[EventDate "2022.??.??"]
[TimeControl "60"]

1. Nf3 {[%emt 0:00:03]} d5 {[%emt 0:00:12]} 2. e3 {[%emt 0:00:16]} c6 {[%emt 0:
00:00]} 3. c4 {[%emt 0:00:06]} Nf6 {[%emt 0:00:15]} 4. d4 {[%emt 0:00:03]} e6 {
[%emt 0:03:00]} 5. Bd3 {[%emt 0:00:25]} Nbd7 {[%emt 0:04:23]} 6. b3 {[%emt 0:
00:00]} b6 {[%emt 0:12:47]} 7. O-O {[%emt 0:00:21]} Be7 {[%emt 0:00:18]} 8. Bb2
{[%emt 0:00:45]} O-O {[%emt 0:00:16]} 9. Nc3 {[%emt 0:04:27]} Bb7 {[%emt 0:00:
00]} 10. Qe2 {[%emt 0:04:11]} a5 {[%emt 0:07:39]} 11. Rfd1 {[%emt 0:02:53]} Qb8
{[%emt 0:05:59]} 12. e4 {[%emt 0:06:42]} dxe4 {[%emt 0:11:47]} 13. Nxe4 {
[%emt 0:00:07]} a4 {[%emt 0:00:58]} 14. bxa4 {[%emt 0:09:51]} c5 {[%emt 0:00:
00]} 15. Nxf6+ {[%emt 0:10:09]} Bxf6 {[%emt 0:06:24]} 16. d5 {[%emt 0:00:35]}
exd5 {[%emt 0:08:27]} 17. cxd5 {[%emt 0:00:06]} Bxb2 {[%emt 0:00:51]} 18. Qxb2
{[%emt 0:00:07]} Qf4 {[%emt 0:00:03]} 19. Bb5 {[%emt 0:09:14]} Nf6 {[%emt 0:00:
00]} 20. Bc6 {[%emt 0:09:39]} Bxc6 {[%emt 0:00:21]} 21. dxc6 {[%emt 0:00:02]}
Qc7 {[%emt 0:02:36]} 22. Ne5 {[%emt 0:00:05]} Rfe8 {[%emt 0:00:39]} 23. Nc4 {
[%emt 0:01:08]} Ng4 {[%emt 0:06:50]} 24. Rd6 {[%emt 0:22:42]} Rxa4 {[%emt 0:00:
00]} 25. Rad1 {[%emt 0:00:08]} Rxc4 {[%emt 0:00:54]} 26. Qe2 {[%emt 0:00:04]}
Ne5 {[%emt 0:06:26]} 27. f4 {[%emt 0:05:13]} Rc1 {[%emt 0:02:55]} 28. fxe5 {
[%emt 0:00:47]} Rxd1+ {[%emt 0:00:11]} 29. Qxd1 {[%emt 0:00:03]} g6 {[%emt 0:
00:00]} 30. Qd5 {[%emt 0:00:51]} Rf8 {[%emt 0:02:09]} 31. Rd7 {[%emt 0:00:34]}
Qc8 {[%emt 0:00:41]} 32. e6 {[%emt 0:01:22]} Kg7 {[%emt 0:00:35]} 33. e7 {
[%emt 0:00:54]} Re8 {[%emt 0:00:18]} 34. Rd8 {[%emt 0:00:10]} 1-0